bitfinex/quotes_SOLUSD_20250413
["timestamp","ask_amount","ask_price","bid_price","bid_amount"]
[1744507230162,63.98695031,132.72,132.68,10.1661877]
[1744507231163,15.98695031,132.71,132.68,2.6292877]
[1744507231340,63.98695031,132.72,132.68,10.1661877]
[1744507231959,63.98695031,132.72,132.68,26.15313801]
[1744507232967,48.0,132.72,132.69,15.98695031]
[1744507233167,81.0,132.72,132.7,15.98695031]
[1744507233351,81.0,132.72,132.71,15.98695031]
[1744507233950,81.0,132.72,132.7,15.98695031]
[1744507234750,81.0,132.72,132.71,15.98695031]
[1744507234970,0.063,132.78,132.72,18.79181043]
[1744507235168,81.0,132.77,132.72,6.82]
[1744507235459,9.98342204,132.75,132.7,9.98342204]
[1744507235675,81.0,132.74,132.71,9.98342204]
[1744507236161,81.0,132.74,132.72,7.5346]
[1744507236870,81.0,132.74,132.72,17.51802204]
[1744507237064,81.0,132.74,132.73,9.98342204]
[1744507238273,81.0,132.74,132.73,17.51742204]
[1744507238568,0.063,132.78,132.73,56.71033247]
[1744507238774,0.063,132.78,132.77,9.98342204]
[1744507239070,0.063,132.78,132.76,9.98342204]
[1744507239364,0.063,132.78,132.74,9.98342204]
[1744507239749,0.063,132.78,132.75,9.98342204]
[1744507240271,0.063,132.78,132.75,17.51622204]
[1744507243766,0.063,132.78,132.76,9.98342204]
[1744507244554,0.063,132.78,132.76,17.51562204]
[1744507246168,0.063,132.78,132.76,7.5322]
[1744507246861,0.063,132.78,132.76,17.51562204]
[1744507247264,0.063,132.78,132.77,9.98342204]
[1744507248072,0.063,132.78,132.77,17.51522204]
[1744507255380,81.0,132.83,132.77,36.34472204]
[1744507255578,81.0,132.83,132.8,9.98342204]
[1744507257486,79.0,132.83,132.82,7.5289]
[1744507258782,79.0,132.82,132.76,25.6496]
[1744507258967,88.98342204,132.82,132.77,7.5318]
[1744507259168,88.98342204,132.82,132.77,17.51522204]
[1744507259375,79.0,132.82,132.78,9.98342204]
[1744507260181,79.0,132.82,132.79,7.5306]
[1744507261368,79.0,132.82,132.78,9.98342204]
[1744507262888,79.0,132.82,132.79,7.5306]
[1744507263479,9.98342204,132.8,132.76,7.5321]
[1744507263781,88.98342204,132.79,132.76,7.5321]
[1744507263963,79.0,132.79,132.76,7.5321]
[1744507264165,79.0,132.79,132.76,17.51552204]
[1744507266392,79.063,132.84,132.78,19.96684408]
[1744507266693,79.063,132.84,132.83,9.98342204]
[1744507268181,79.063,132.84,132.83,17.51182204]
[1744507269282,0.063,132.84,132.83,17.51182204]
[1744507272367,0.0001,132.84,132.83,46.28705451]
[1744507272766,0.0001,132.86,132.85,44.79181043]
[1744507272988,0.0001,132.86,132.85,56.60645561]
[1744507273192,0.0001,132.86,132.85,35.98342204]
[1744507274186,0.0001,132.86,132.85,54.77523247]
[1744507275387,0.0001,132.86,132.85,68.22889991]
[1744507275688,0.0001,132.86,132.85,43.51062204]
[1744507276276,0.063,132.88,132.86,18.79181043]
[1744507276492,0.0001,132.88,132.87,28.77523247]
[1744507276996,0.0001,132.89,132.87,29.05955561]
[1744507277168,0.063,132.92,132.89,18.79181043]
[1744507277490,0.063,132.92,132.91,9.98342204]
[1744507277680,0.063,132.93,132.92,18.79181043]
[1744507277990,0.063,132.93,132.92,28.77523247]
[1744507279497,0.063,132.93,132.92,36.29853247]
[1744507279995,0.063,132.98,132.93,0.28432314]
[1744507280301,0.063,132.98,132.96,19.96684408]
[1744507280478,0.063,132.98,132.96,9.98342204]
[1744507281697,0.063,132.98,132.96,17.50442204]
[1744507282614,0.063,132.98,132.96,9.98342204]
[1744507282783,0.063,132.98,132.95,7.5216]
[1744507282979,0.063,132.98,132.95,17.50502204]
[1744507283188,0.063,132.98,132.96,9.98342204]
[1744507284103,0.063,132.98,132.93,26.3294]
[1744507284287,0.063,132.98,132.96,9.98342204]
[1744507286385,0.063,132.98,132.96,46.27965451]
[1744507286901,0.063,132.98,132.96,36.29623247]
[1744507287278,0.063,132.98,132.96,17.50442204]
[1744507287480,0.063,132.98,132.96,7.521]
[1744507287687,0.063,132.98,132.91,6.82]
[1744507287885,10.04642204,132.98,132.93,9.98342204]
[1744507288086,0.063,132.98,132.96,9.98342204]
[1744507288287,0.063,132.98,132.94,17.50532204]
[1744507291818,0.063,132.98,132.95,9.98342204]
[1744507291984,0.063,132.98,132.96,9.98342204]
[1744507293798,0.063,132.98,132.96,17.50442204]
[1744507293992,0.063,132.98,132.96,27.48784408]
[1744507294605,0.063,132.98,132.96,17.50442204]
[1744507298015,0.063,132.98,132.96,27.48784408]
[1744507301120,0.063,132.98,132.96,17.50442204]
[1744507301311,0.063,132.98,132.96,46.56397765]
[1744507301519,0.03,133.0,132.97,28.77523247]
[1744507301710,0.03,133.0,132.99,9.98342204]
[1744507302629,0.03,133.0,132.99,28.77523247]
[1744507302806,0.03,133.0,132.99,36.29453247]
[1744507306508,0.03,133.03,132.99,55.37725561]
[1744507306703,0.03,133.03,133.02,9.98342204]
[1744507307329,0.03,133.03,133.01,7.518]
[1744507307521,9.98342204,133.02,132.96,16.84342204]
[1744507307703,9.98342204,133.01,132.96,9.98342204]
[1744507308103,9.98342204,133.0,132.95,7.5216]
[1744507308403,9.98342204,132.97,132.93,9.98342204]
[1744507308603,9.98342204,132.94,132.89,7.525]
[1744507308818,17.83932204,132.94,132.89,17.50842204]
[1744507309223,7.8559,132.94,132.91,9.98342204]
[1744507309428,9.98342204,132.93,132.89,7.525]
[1744507309627,17.83932204,132.94,132.89,17.50842204]
[1744507309922,17.83932204,132.94,132.93,0.063]
[1744507310133,7.8559,132.94,132.93,0.063]
[1744507310317,79.0,132.96,132.93,0.063]
[1744507310523,88.98342204,132.96,132.93,0.063]
[1744507310715,9.98342204,132.95,132.93,0.063]
[1744507313624,17.50502204,132.95,132.93,0.063]
[1744507314321,88.98342204,132.94,132.93,0.063]
[1744507314835,96.50552204,132.94,132.93,0.063]
[1744507315131,88.98342204,132.94,132.93,0.063]
[1744507315828,79.0,132.94,132.93,0.063]
[1744507317417,79.0,132.94,132.93,10.04642204]
[1744507319036,79.0,132.94,132.93,0.063]
[1744507319239,79.0,132.94,132.93,17.56912204]
[1744507319736,7.873,132.97,132.93,17.56912204]
[1744507320234,9.98342204,132.98,132.94,9.98342204]
[1744507320439,79.03,133.03,132.97,9.98342204]
[1744507320649,79.03,133.03,133.02,9.98342204]
[1744507320848,0.03,133.03,133.02,9.98342204]
[1744507321148,0.03,133.03,133.01,9.98342204]
[1744507322329,0.03,133.03,133.0,17.50202204]
[1744507322526,0.03,133.03,133.02,9.98342204]
[1744507323730,0.03,133.03,133.02,38.75865451]
[1744507323936,0.03,133.03,133.02,9.98342204]
[1744507324368,0.03,133.03,133.02,17.50102204]
[1744507324826,0.063,133.06,133.03,18.79181043]
[1744507325033,0.063,133.06,133.05,9.98342204]
[1744507325739,0.063,133.06,133.04,9.98342204]
[1744507325936,10.04642204,133.06,133.01,17.50142204]
[1744507326139,0.063,133.06,133.02,9.98342204]
[1744507326356,0.063,133.06,133.05,17.49932204]
[1744507326880,0.063,133.06,133.03,7.5171]
[1744507327029,0.063,133.06,133.02,9.98342204]
[1744507327553,9.98342204,133.05,133.0,9.98342204]
[1744507327758,9.98342204,133.05,132.99,6.82]
[1744507327954,9.98342204,133.05,133.01,9.98342204]
[1744507328364,9.98342204,133.05,133.0,2.78466498]
[1744507328545,9.98342204,133.05,133.0,20.28658702]
[1744507328741,86.8626,133.04,133.0,2.78466498]
[1744507329071,9.98342204,133.01,132.96,17.50442204]
[1744507329241,15.91283318,133.02,132.97,15.91283318]
[1744507329450,79.0,133.03,133.0,15.91283318]
[1744507329770,94.91283318,133.03,132.98,15.91283318]
[1744507329947,94.91283318,133.03,132.96,7.521]
[1744507329948,15.91283318,133.02,132.97,15.91283318]
[1744507330681,15.91283318,133.02,132.97,23.43293318]
[1744507330849,15.91283318,133.02,132.97,7.5201]
[1744507331055,15.91283318,133.02,132.98,15.91283318]
[1744507331249,94.91283318,133.03,132.98,15.91283318]
[1744507331891,79.0,133.03,132.99,15.91283318]
[1744507332069,79.0,133.03,132.97,7.5201]
[1744507332070,79.0,133.03,133.0,15.91283318]
[1744507332265,79.0,133.03,133.01,15.91283318]
[1744507332477,0.063,133.06,133.02,15.91283318]
[1744507332769,0.063,133.06,133.03,7.5171]
[1744507332953,0.063,133.06,133.03,23.42993318]
[1744507333951,0.063,133.06,133.04,15.91283318]
[1744507335848,0.063,133.06,133.04,23.42933318]
[1744507336248,0.063,133.06,133.05,15.91283318]
[1744507337261,0.063,133.06,133.05,18.69170917]
[1744507337975,0.063,133.06,133.05,26.20760917]
[1744507341070,0.063,133.06,133.05,23.42873318]
[1744507344479,0.063,133.06,133.05,15.91283318]
[1744507344863,0.063,133.06,133.05,23.42873318]
[1744507345978,0.063,133.06,133.05,7.5159]
[1744507346174,0.063,133.06,133.05,15.91283318]
[1744507348390,0.063,133.06,133.05,23.42873318]
[1744507349397,0.063,133.06,133.05,17.44780704]
[1744507352376,0.063,133.06,133.05,7.5159]
[1744507352574,0.063,133.06,133.01,18.79181043]
[1744507352775,0.063,133.06,133.02,10.28110711]
[1744507352990,0.063,133.06,133.03,9.93190704]
[1744507354803,7.5171,133.03,132.97,0.063]
[1744507354986,9.93190704,133.02,132.97,9.99490704]
[1744507355196,8.2138,133.04,133.0,9.93190704]
[1744507355367,79.0,133.05,133.03,9.93190704]
[1744507355572,0.063,133.06,133.04,9.93190704]
[1744507356274,0.063,133.06,133.05,9.93190704]
[1744507356971,0.063,133.06,133.05,17.44780704]
[1744507358099,0.063,133.06,133.05,9.93190704]
[1744507358301,0.063,133.06,133.05,17.44780704]
[1744507359396,0.063,133.06,133.05,23.40820504]
[1744507361298,0.063,133.06,133.05,26.18197527]
[1744507367104,0.063,133.06,133.05,45.25810884]
[1744507367309,0.03,133.09,133.06,18.79181043]
[1744507367603,0.03,133.09,133.08,50.57642051]
[1744507368103,0.03,133.09,133.08,53.35019074]
[1744507368494,0.03,133.09,133.08,60.86439074]
[1744507370210,0.03,133.09,133.08,26.18027527]
[1744507370384,0.03,133.09,133.08,18.66607527]
[1744507370585,0.03,133.09,133.08,26.18027527]
[1744507371305,0.03,133.09,133.08,60.86439074]
[1744507372297,0.03,133.11,133.08,77.16054365]
[1744507372607,0.03,133.11,133.1,42.19721547]
[1744507377495,0.03,133.11,133.1,23.40540504]
[1744507377713,0.03,133.11,133.1,7.5131]
[1744507378019,0.03,133.11,133.09,7.5135]
[1744507378616,0.03,133.11,133.09,23.40580504]
[1744507379424,0.03,133.11,133.1,15.89230504]
[1744507380395,0.03,133.11,133.08,15.89230504]
[1744507380594,22.56630504,133.11,133.07,23.40660504]
[1744507380806,22.56630504,133.11,133.07,7.5143]
[1744507381227,22.56630504,133.11,133.07,23.40660504]
[1744507381415,16.60554596,133.11,133.07,17.44584596]
[1744507382034,9.93154596,133.09,133.05,9.93154596]
[1744507382335,9.93154596,133.1,133.05,9.93154596]
[1744507383412,17.44474596,133.1,133.05,17.44724596]
[1744507383616,9.93154596,133.08,133.03,9.93154596]
[1744507384227,9.93154596,133.08,133.03,17.44824596]
[1744507384726,9.93154596,133.09,133.04,9.93154596]
[1744507384917,24.4024691,133.11,133.06,9.93154596]
[1744507385229,9.93154596,133.1,133.06,9.93154596]
[1744507385405,9.93154596,133.1,133.05,17.44724596]
[1744507386706,9.93154596,133.08,133.04,9.93154596]
[1744507386912,1.5994,133.07,133.03,9.93154596]
[1744507387735,11.53094596,133.07,133.03,9.93154596]
[1744507388035,1.5994,133.07,133.03,9.93154596]
[1744507388835,1.5994,133.07,133.04,7.5165]
[1744507389028,1.5994,133.07,133.04,17.44804596]
[1744507389232,79.0,133.09,133.05,9.93154596]
[1744507389531,79.0,133.09,133.06,9.93154596]
[1744507389742,79.0,133.09,133.05,9.93154596]
[1744507391339,79.0,133.09,133.06,15.89451909]
[1744507392117,79.0,133.09,133.05,15.89451909]
[1744507392851,79.0,133.09,133.06,23.40991909]
[1744507393019,79.0,133.09,133.08,15.89451909]
[1744507393213,8.2734,133.11,133.08,15.89451909]
[1744507393419,0.03,133.11,133.1,15.89451909]
[1744507393745,0.0001,133.11,133.1,34.68632952]
[1744507394253,0.063,133.17,133.13,44.79181043]
[1744507394542,0.063,133.17,133.16,15.89451909]
[1744507394917,0.063,133.17,133.16,23.40421909]
[1744507395113,0.063,133.17,133.16,7.5097]
[1744507395333,0.063,133.17,133.16,23.40421909]
[1744507400142,0.063,133.17,133.15,7.5101]
[1744507400343,0.063,133.17,133.16,15.89451909]
[1744507400941,0.063,133.17,133.16,23.40421909]
[1744507401446,0.063,133.17,133.16,42.19602952]
[1744507404336,0.03,133.2,133.17,18.79181043]
[1744507404535,0.03,133.2,133.19,15.89451909]
[1744507404954,0.03,133.2,133.19,23.40251909]
[1744507405862,0.03,133.2,133.19,42.19432952]
[1744507406153,0.03,133.2,133.19,49.29865266]
[1744507409346,0.03,133.2,133.19,30.22251909]
[1744507410738,0.03,133.2,133.19,23.40251909]
[1744507413356,0.03,133.2,133.19,17.41895443]
[1744507416174,0.03,133.2,133.19,36.21076486]
[1744507430779,0.03,133.22,133.2,18.79181043]
[1744507430976,0.03,133.22,133.21,28.70276486]
[1744507431780,0.03,133.22,133.21,7.5069]
[1744507432368,0.03,133.22,133.21,17.41785443]
[1744507432759,0.03,133.22,133.21,36.20966486]
[1744507433277,0.063,133.24,133.21,36.20966486]
[1744507433278,0.063,133.24,133.22,18.79181043]
[1744507433479,0.063,133.25,133.24,26.28432314]
[1744507433779,0.063,133.25,133.24,7.5052]
[1744507434362,0.063,133.25,133.24,17.41615443]
[1744507434760,0.063,133.25,133.23,14.3056]
[1744507434978,0.063,133.25,133.21,17.41785443]
[1744507435169,9.97395443,133.25,133.21,7.5069]
[1744507435370,0.063,133.25,133.22,9.91095443]
[1744507436380,0.063,133.25,133.24,9.91095443]
[1744507436879,0.063,133.25,133.24,17.41615443]
[1744507439586,0.063,133.25,133.24,7.5052]
[1744507440186,0.063,133.25,133.22,7.5063]
[1744507440579,0.063,133.25,133.22,17.41725443]
[1744507440779,0.063,133.25,133.23,9.91095443]
[1744507440977,0.063,133.25,133.24,9.91095443]
[1744507442284,0.063,133.25,133.24,17.41615443]
[1744507443290,0.063,133.25,133.24,13.84435485]
[1744507449969,0.063,133.25,133.2,6.8]
[1744507450293,0.063,133.25,133.21,6.33915485]
[1744507450484,0.063,133.25,133.22,6.33915485]
[1744507451073,0.063,133.25,133.23,7.5058]
[1744507451300,0.063,133.25,133.24,6.33915485]
[1744507453197,0.063,133.25,133.24,13.84435485]
[1744507453499,0.063,133.25,133.23,13.84485485]
[1744507453799,0.063,133.25,133.24,6.33915485]
[1744507454776,0.063,133.25,133.24,25.13096528]
[1744507455177,0.063,133.25,133.24,13.84435485]
[1744507456188,0.063,133.25,133.24,16.6197032]
[1744507456996,0.063,133.25,133.24,10.28054835]
[1744507457191,0.063,133.25,133.24,2.77534835]
[1744507458086,0.063,133.25,133.24,10.28054835]
[1744507458725,0.063,133.25,133.24,2.77534835]
[1744507459705,0.063,133.25,133.23,13.84475485]
[1744507459882,0.063,133.25,133.24,2.7783178]
[1744507461002,6.40215485,133.25,133.24,2.7783178]
[1744507461902,6.40215485,133.25,133.21,7.5069]
[1744507462197,0.063,133.25,133.21,13.84605485]
[1744507462500,0.063,133.25,133.24,6.33915485]
[1744507463302,0.063,133.25,133.24,9.11724995]
[1744507463805,0.063,133.25,133.24,16.62244995]
[1744507463993,0.063,133.25,133.24,18.49741511]
[1744507465905,0.063,133.25,133.24,4.65306026]
[1744507466708,6.40215485,133.25,133.24,4.65306026]
[1744507467307,6.40215485,133.25,133.24,4.65338954]
[1744507467507,6.40215485,133.25,133.24,1.87529444]
[1744507468009,6.40215485,133.25,133.22,7.5061]
[1744507468205,6.40215485,133.25,133.21,7.5067]
[1744507468206,6.33915485,133.24,133.21,7.5067]
[1744507468511,6.33915485,133.23,133.22,2.77298547]
[1744507468804,12.67995485,133.23,133.22,2.77298547]
[1744507469006,6.3408,133.23,133.22,2.77298547]
[1744507469203,12.67995485,133.23,133.2,7.507]
[1744507469402,6.33915485,133.21,133.18,7.5711]
[1744507469708,6.33915485,133.2,133.18,0.063]
[1744507469891,7.87755485,133.19,133.18,0.063]
[1744507470097,22.14403956,133.19,133.18,0.063]
[1744507470399,22.00187799,133.19,133.18,0.063]
[1744507470592,7.8704,133.19,133.18,0.063]
[1744507471000,93.59082314,133.22,133.18,0.063]
[1744507471001,85.8,133.22,133.18,0.063]
[1744507471197,79.0,133.22,133.18,6.40215485]
[1744507471400,79.0,133.22,133.18,9.97736568]
[1744507471807,9.91436568,133.21,133.18,0.063]
[1744507472203,88.91436568,133.22,133.18,0.063]
[1744507472406,79.0,133.22,133.19,9.91436568]
[1744507472606,79.0,133.22,133.18,9.97736568]
[1744507472804,88.91436568,133.22,133.18,0.063]
[1744507473490,9.91436568,133.21,133.18,0.063]
[1744507473704,9.91436568,133.2,133.18,0.063]
[1744507473898,10.05652725,133.19,133.18,0.063]
[1744507474096,17.56452725,133.19,133.18,0.063]
[1744507475025,36.49849925,133.19,133.18,0.063]
[1744507476733,17.84885039,133.19,133.18,0.063]
[1744507481021,36.49849925,133.19,133.18,0.063]
[1744507484000,115.49849925,133.19,133.18,0.063]
[1744507490129,123.68249925,133.19,133.18,0.063]
[1744507490925,146.29249925,133.19,133.18,0.063]
[1744507493926,6.8,133.21,133.18,0.063]
[1744507494114,0.14216157,133.22,133.18,0.063]
[1744507494306,9.91436568,133.2,133.18,0.063]
[1744507494511,9.91436568,133.19,133.18,0.063]
[1744507494718,9.91436568,133.2,133.18,0.063]
[1744507494911,9.91436568,133.21,133.18,0.063]
[1744507496125,79.0,133.24,133.19,9.91436568]
[1744507496427,79.0,133.24,133.2,9.91436568]
[1744507496619,9.91436568,133.23,133.18,9.97736568]
[1744507496824,88.91436568,133.24,133.19,9.91436568]
[1744507497427,79.0,133.24,133.21,9.91436568]
[1744507497728,79.0,133.24,133.2,9.91436568]
[1744507498112,79.0,133.24,133.2,17.42136568]
[1744507499027,10.05652725,133.23,133.18,11.50376568]
[1744507499235,9.91436568,133.22,133.18,0.063]
[1744507499431,9.91436568,133.23,133.18,17.48576568]
[1744507499729,88.91436568,133.24,133.19,9.91436568]
[1744507500129,88.91436568,133.24,133.19,17.42196568]
[1744507502519,9.91436568,133.2,133.18,0.063]
[1744507502719,0.28432314,133.23,133.18,17.48586568]
[1744507502928,0.28432314,133.23,133.19,9.91436568]
[1744507503235,88.91436568,133.24,133.21,9.91436568]
[1744507503236,79.0,133.24,133.21,9.91436568]
[1744507503434,0.063,133.25,133.23,9.91436568]
[1744507503750,0.063,133.25,133.21,11.44076568]
[1744507503924,0.063,133.25,133.22,9.91436568]
[1744507504623,0.063,133.25,133.22,17.42036568]
[1744507505924,0.063,133.25,133.23,9.91436568]
[1744507507939,0.063,133.25,133.22,7.506]
[1744507508236,0.063,133.25,133.22,17.42036568]
[1744507509733,0.063,133.25,133.22,7.506]
[1744507510241,9.91436568,133.23,133.18,0.063]
[1744507510546,9.91436568,133.19,133.18,0.063]
[1744507510724,10.19868882,133.19,133.18,0.063]
[1744507512091,17.70668882,133.19,133.18,0.063]
[1744507512555,10.19868882,133.19,133.18,0.063]
[1744507512723,9.91436568,133.2,133.18,0.063]
[1744507513036,9.91436568,133.19,133.18,0.063]
[1744507515248,9.91436568,133.2,133.18,0.063]
[1744507519463,10.34085039,133.19,133.18,0.063]
[1744507520972,17.84885039,133.19,133.18,0.063]
[1744507521165,7.5073,133.21,133.18,0.063]
[1744507521342,9.91436568,133.2,133.18,0.063]
[1744507521737,9.91436568,133.19,133.18,0.063]
[1744507521938,9.91436568,133.2,133.18,0.063]
[1744507522774,36.19868882,133.19,133.18,0.063]
[1744507523767,43.70668882,133.19,133.18,0.063]
[1744507526775,36.49849925,133.19,133.18,0.063]
[1744507527249,43.15069925,133.19,133.18,0.063]
[1744507528548,10.34085039,133.18,133.17,0.063]
[1744507529163,17.84945039,133.18,133.17,0.063]
[1744507531362,36.49909925,133.18,133.17,0.0001]
[1744507531572,0.28432314,133.13,133.12,0.063]
[1744507531861,10.19868882,133.13,133.12,0.063]
[1744507532260,28.99049925,133.13,133.12,0.063]
[1744507532642,10.34085039,133.13,133.12,0.063]
[1744507532875,10.19868882,133.13,133.12,0.063]
[1744507533869,17.71008882,133.13,133.12,0.063]
[1744507535071,17.42576568,133.13,133.12,0.063]
[1744507538772,35.91436568,133.14,133.12,0.063]
[1744507538773,33.511,133.14,133.12,0.063]
[1744507538969,9.91436568,133.14,133.12,0.063]
[1744507539853,35.91436568,133.13,133.12,0.063]
[1744507540070,6.8,133.15,133.12,0.063]
[1744507540348,9.91436568,133.14,133.12,0.063]
[1744507540657,6.8,133.15,133.12,0.063]
[1744507540857,9.91436568,133.14,133.12,0.063]
[1744507541276,17.42526568,133.14,133.12,0.063]
[1744507542174,9.91436568,133.14,133.12,0.063]
[1744507545773,14.3104,133.15,133.12,0.063]
[1744507545975,9.91436568,133.14,133.12,0.063]
[1744507547962,14.3104,133.15,133.12,0.063]
[1744507548269,81.0,133.21,133.12,1.5901]
[1744507548476,17.42136568,133.21,133.16,9.91436568]
[1744507548682,9.91436568,133.18,133.12,8.3901]
[1744507548876,9.91436568,133.17,133.12,18.30446568]
[1744507549080,9.91436568,133.18,133.13,9.91436568]
[1744507549380,6.34928214,133.18,133.13,6.34928214]
[1744507549888,6.34928214,133.18,133.14,7.5108]
[1744507550182,6.34928214,133.18,133.14,6.34928214]
[1744507550565,6.34928214,133.2,133.15,6.34928214]
[1744507551371,9.91816779,133.2,133.15,9.91816779]
[1744507551675,9.91816779,133.2,133.15,17.42796779]
[1744507553087,9.91816779,133.18,133.13,9.91816779]
[1744507553285,9.91816779,133.16,133.12,1.5901]
[1744507553467,9.91816779,133.17,133.13,9.91816779]
[1744507553669,9.91816779,133.18,133.14,17.42896779]
[1744507553894,7.5078,133.2,133.14,17.42896779]
[1744507554079,9.91816779,133.19,133.14,17.42896779]
[1744507554389,9.91816779,133.18,133.14,17.42896779]
[1744507555298,9.91816779,133.18,133.14,7.5108]
[1744507556895,7.5075,133.2,133.14,7.5108]
[1744507557108,9.91816779,133.19,133.14,17.42896779]
[1744507557474,7.507,133.21,133.15,9.91816779]
[1744507557690,9.91816779,133.19,133.15,9.91816779]
[1744507558194,9.91816779,133.19,133.15,17.42816779]
[1744507559994,9.91816779,133.19,133.15,7.51]
[1744507560385,9.91816779,133.2,133.15,17.42816779]
[1744507560585,9.91816779,133.19,133.15,7.51]
[1744507562487,7.507,133.21,133.15,7.51]
[1744507562696,9.91816779,133.21,133.17,9.91816779]
[1744507562885,9.91816779,133.2,133.15,17.42826779]
[1744507563193,7.5071,133.21,133.15,7.5101]
[1744507563388,7.5066,133.22,133.15,17.42826779]
[1744507563594,9.91816779,133.21,133.17,8.1839]
[1744507563795,9.91816779,133.22,133.17,18.10206779]
[1744507564194,0.03,133.23,133.17,18.10206779]
[1744507564382,9.94816779,133.23,133.19,9.91816779]
[1744507564573,0.03,133.23,133.19,9.91816779]
[1744507565097,0.03,133.23,133.2,17.42566779]
[1744507565299,0.03,133.23,133.2,7.5075]
[1744507565679,0.03,133.23,133.2,17.42566779]
[1744507566096,9.94816779,133.23,133.19,17.42596779]
[1744507566275,9.94816779,133.23,133.19,7.5078]
[1744507567104,0.03,133.23,133.19,17.42596779]
[1744507569603,0.03,133.23,133.2,9.91816779]
[1744507570618,0.03,133.23,133.21,9.91816779]
[1744507570916,0.03,133.23,133.22,30.56350136]
[1744507571094,0.033,133.25,133.23,18.79181043]
[1744507571294,0.033,133.25,133.24,25.41296554]
[1744507571503,0.03,133.26,133.25,18.79181043]
[1744507571708,0.03,133.26,133.25,32.77540397]
[1744507571887,0.03,133.26,133.25,32.91756554]
[1744507573004,0.03,133.26,133.25,32.6332424]
[1744507573193,0.03,133.26,133.25,32.91756554]
[1744507573380,0.03,133.26,133.25,36.48225509]
[1744507579309,0.03,133.26,133.25,36.19793195]
[1744507581089,0.03,133.26,133.25,17.40612152]
[1744507581490,0.03,133.26,133.25,36.19793195]
[1744507583605,0.03,133.26,133.22,18.79181043]
[1744507583785,0.03,133.26,133.24,9.90152152]
[1744507583987,0.03,133.26,133.25,28.69333195]
[1744507585009,0.03,133.26,133.25,36.19793195]
[1744507585508,0.03,133.26,133.25,37.84873195]
[1744507585887,0.03,133.26,133.21,83.2508]
[1744507586105,0.03,133.26,133.23,9.90152152]
[1744507587522,0.03,133.26,133.22,17.40782152]
[1744507587694,9.90152152,133.24,133.2,6.8]
[1744507587996,9.90152152,133.24,133.19,0.063]
[1744507587997,0.14216157,133.2,133.19,0.063]
[1744507588202,20.08736618,133.2,133.19,0.063]
[1744507588793,10.18584466,133.2,133.19,0.063]
[1744507589317,17.69334466,133.2,133.19,0.063]
[1744507589513,27.59486618,133.2,133.19,0.063]
[1744507591712,17.40902152,133.2,133.19,0.063]
[1744507591931,9.90152152,133.2,133.19,0.063]
[1744507594417,17.40902152,133.2,133.19,0.063]
[1744507596018,9.90152152,133.22,133.19,0.063]
[1744507596324,26.0,133.22,133.19,0.063]
[1744507596511,26.0,133.22,133.19,9.96452152]
[1744507596897,9.90152152,133.23,133.19,9.96452152]
[1744507597102,9.90152152,133.23,133.19,0.063]
[1744507597418,9.90152152,133.23,133.19,9.96452152]
[1744507599129,9.90152152,133.23,133.19,17.47232152]
[1744507599628,9.90152152,133.23,133.19,7.5708]
[1744507600623,26.0,133.2,133.19,0.063]
[1744507600822,36.18584466,133.2,133.19,0.063]
[1744507601120,26.28432314,133.16,133.13,0.063]
[1744507601330,9.90152152,133.14,133.13,0.063]
[1744507602426,9.90152152,133.17,133.13,0.063]
[1744507602612,7.5086,133.18,133.13,17.47582152]
[1744507602814,9.90152152,133.17,133.13,17.47582152]
[1744507603014,9.90152152,133.17,133.13,9.96452152]
[1744507603216,9.90152152,133.17,133.13,0.063]
[1744507604028,9.90152152,133.16,133.13,0.063]
[1744507604326,7.5086,133.18,133.13,0.063]
[1744507604327,9.90152152,133.15,133.13,0.063]